Cogmind - Beta 13 @@@ ROGUE MODE // 2024.04.30 @ 15:14:48 Player: e.v.o Result: Self-destructed Performance ------------- Evolutions (1) 500 Regions Visited (2) 400 Robots Destroyed (16) 80 Value Destroyed (294) 294 Prototype IDs (0) 0 Alien Tech Used (0) 0 Bonus (0) 0 TOTAL SCORE: 1274 Bonus ------- None Cogmind --------- Core Integrity 325/400 Matter 255/300 Energy 125/125 System Corruption 0% Temperature Hot (227) Movement Treading (160) Location -9/Materials Parts ------- > --- POWER (1) -------- Light Ion Engine > --- PROPULSION (2) --- Light Treads > --- UTILITY (3) ------ Medium Storage Unit Sensor Array Signal Interpreter > --- WEAPON (3) ------- Light Assault Rifle Mining Claw > --- INVENTORY (10) --- Aluminum Leg Aluminum Leg Hover Unit EM Pulse Gun EM Pulse Gun Beam Cannon Beam Cannon Peak State ------------ > --- POWER ------------ Light Ion Engine > --- PROPULSION ------- Light Treads Light Treads > --- UTILITY ---------- Medium Storage Unit Sensor Array Signal Interpreter > --- WEAPON ----------- Beam Cannon Light Assault Rifle Mining Claw > --- INVENTORY -------- Light Ion Engine Aluminum Leg Aluminum Leg Hover Unit EM Pulse Gun EM Pulse Gun Beam Cannon Beam Cannon [Rating: 9] Favorites ----------- Power Ion Engine Engine Ion Engine Propulsion Light Treads Treads Light Treads Utility Medium Storage Unit Device Sensor Array Storage Medium Storage Unit Processor Signal Interpreter Weapon Light Assault Rifle Energy Gun EM Pulse Gun Energy Cannon Beam Cannon Ballistic Gun Light Assault Rifle Slashing Weapon Mining Claw Build | -11 -10 -9 ------- Run | Yrd Mat Mat Slots Evolved 2 | . . 2 Power . | . . . Propulsion . | . . . Utility 1 | . . 1 Weapon 1 | . . 1 Parts Attached 17 | 6 8 3 Power 4 | 1 2 1 Engine 4 | 1 2 1 Core . | . . . Reactor . | . . . Propulsion 2 | 2 . . Treads 2 | 2 . . Leg . | . . . Wheel . | . . . Hover . | . . . Flight . | . . . Utility 6 | 1 4 1 Device 3 | . 2 1 Storage 2 | 1 1 . Processor 1 | . 1 . Hackware . | . . . Protection . | . . . Artifact . | . . . Weapon 5 | 2 2 1 Energy Gun 1 | 1 . . Energy Cannon 1 | . 1 . Ballistic Gun 2 | 1 1 . Ballistic Cannon . | . . . Launcher . | . . . Special Weapon . | . . . Impact Weapon . | . . . Slashing Weapon 1 | . . 1 Piercing Weapon . | . . . Special Melee Weapon . | . . . Unidentified Prototypes . | . . . Parts Lost 3 | . . 3 Power 1 | . . 1 Propulsion 1 | . . 1 Utility . | . . . Weapon 1 | . . 1 Highest Loss Streak 3 | . . 3 To Critical Strikes . | . . . Average Slot Usage (%) 96 | . 95 100 Engine 13 | . 14 11 Treads 27 | . 28 22 Device 9 | . 9 11 Storage 13 | . 14 11 Processor 2 | . . 11 Energy Gun 2 | . 3 . Energy Cannon 10 | . 10 11 Ballistic Gun 13 | . 14 11 Slashing Weapon 1 | . . 11 Naked Turns . | . . . Heaviest Build 20 | 13 20 20 Greatest Support 40 | 40 40 40 Greatest Overweight (x) . | . . . Average Overweight (x) . | . . . Largest Inventory Capacity 10 | 8 10 10 Average Capacity 9 | 7 9 10 Most Carried 10 | 5 10 9 Average Carried 6 | 2 7 7 Final Capacity 10 | 8 10 10 Final Carried 10 | 4 10 7 Class Distribution -------------------- 74% | Mutant 25% | Scavenger-Mutant Dominant Class ---------------- Mutant | -10/Materials Scavenger-Mutant | -9/Materials Resources | -11 -10 -9 ----------- Run | Yrd Mat Mat Matter Collected 359 | 223 136 . Remotely . | . . . Salvage Created 411 | . 328 83 Parts 32 | . 28 4 Haulers Intercepted 1 | . 1 . Recyclers Shooed 1 | . 1 . Parts Field Recycled . | . . . Retrieved Matter . | . . . Parts Self-Destructed . | . . . Prevented . | . . . Kills | -11 -10 -9 ------- Run | Yrd Mat Mat Combat Hostiles Destroyed 11 | . 9 2 Guns 3 | . 3 . Cannons 8 | . 6 2 Classes Destroyed 5 | . 5 . Worker 1 | . 1 . Hauler 1 | . 1 . Watcher 3 | . 3 . Swarmer 6 | . 6 . Grunt 5 | . 3 2 Best Kill Streak 4 | . 4 2 Combat Bots Only 4 | . 4 2 Max Kills in Single Turn 1 | . 1 1 Gunslinging . | . . . Exploded . | . . . Melee . | . . . Uniques/NPCs Destroyed . | . . . Combat | -11 -10 -9 -------- Run | Yrd Mat Mat Hostile Shots Fired 82 | . 48 34 Missed 10 | . 6 4 Damage Taken 700 | . 339 361 Core 157 | . 82 75 Absorbed by Shields . | . . . Core Remaining (%) 83 | 100 67 . Volleys Fired 49 | . 35 14 Largest 2 | . 2 2 Hottest 80 | . 80 80 Shots Fired 96 | . 70 26 Gun 62 | . 48 14 Cannon 34 | . 22 12 Launcher . | . . . Special . | . . . Kinetic 49 | . 35 14 Thermal 34 | . 22 12 Explosive . | . . . Electromagnetic 13 | . 13 . Robot Hit Streak 6 | . 5 6 Robot Miss Streak 5 | . 5 2 Penetration Max . | . . . Secondary Targets . | . . . Shots Hit Robots 47 | . 31 16 Core Hits 23 | . 18 5 Critical Kills . | . . . Critical Parts Destroyed . | . . . Critical Strikes . | . . . Melee Attacks . | . . . Impact . | . . . Slashing . | . . . Piercing . | . . . Sneak Attacks . | . . . Combat Hostiles . | . . . Follow-up Attacks . | . . . Damage Inflicted 684 | . 499 185 Guns 318 | . 237 81 Cannons 366 | . 262 104 Explosions . | . . . Melee . | . . . Ramming . | . . . Kinetic 216 | . 135 81 Thermal 366 | . 262 104 Explosive . | . . . Electromagnetic 102 | . 102 . Impact . | . . . Slashing . | . . . Piercing . | . . . Highest Corruption . | . . . Average Corruption . | . . . Corruption Purged . | . . . Corruption Blocked . | . . . Overload Shots . | . . . Overflow Damage . | . . . Projectiles . | . . . Explosions . | . . . Melee . | . . . Knockbacks . | . . . Impact . | . . . Kinetic . | . . . Secondary . | . . . Self-Inflicted Damage . | . . . Shots . | . . . Rammed . | . . . Targets Rammed . | . . . Kicked . | . . . Crushed . | . . . Highest Temperature 272 | . 202 272 Average Temperature 74 | . 53 133 Received Heat Transfer 252 | . 30 222 Siege Activations . | . . . Robots Corrupted . | . . . Combat Hostiles . | . . . Parts Fried . | . . . Impact Corruptions . | . . . Robots Melted . | . . . Combat Hostiles . | . . . Parts Melted 3 | . 3 . Heat Transferred 777 | . 555 222 Parts Sabotaged . | . . . Parts Stolen . | . . . Parts Stripped . | . . . Power Chain Reactions . | . . . Alert | -11 -10 -9 ------- Run | Yrd Mat Mat Peak Influence 299 | . 299 96 Initial 41 | . . 41 Average 107 | . 136 57 Maximum Alert Level 1 | . 1 . Low Security (%) 87 | 100 82 100 Level 1 12 | . 17 . Level 2 . | . . . Level 3 . | . . . Level 4 . | . . . Level 5 . | . . . High Security . | . . . Max Security . | . . . Squads Dispatched 3 | . 2 1 Investigation . | . . . Extermination . | . . . Reinforcement 3 | . 2 1 Assault . | . . . Garrison . | . . . Intercept . | . . . Searches Triggered . | . . . Construction Impeded . | . . . Haulers Reinforced . | . . . Active Scanning Responses . | . . . Cargo Convoy Interrupts . | . . . Stealth | -11 -10 -9 --------- Run | Yrd Mat Mat Distress Signals 1 | . . 1 Communications Jammed . | . . . Distress Signals . | . . . Times Spotted 28 | . 18 10 Peak Tracking Total 7 | . 4 7 Tactical Retreats 2 | . 1 1 Traps | -11 -10 -9 ------- Run | Yrd Mat Mat Traps Triggered . | . . . Indirectly . | . . . Trap Hack Attempts . | . . . Triggered . | . . . Disarmed . | . . . Reprogrammed . | . . . Reused . | . . . Traps Extracted . | . . . Installed . | . . . Triggered . | . . . Machines | -11 -10 -9 ---------- Run | Yrd Mat Mat Machines Disabled . | . . . Max in Single Turn . | . . . Machines Repaired . | . . . Machines Dismantled . | . . . Machines Sabotaged . | . . . Overloaded Fab Kills . | . . . Hacking | -11 -10 -9 --------- Run | Yrd Mat Mat Machines Accessed 2 | . 2 . Terminals 2 | . 2 . Fabricators . | . . . Repair Stations . | . . . Recycling Units . | . . . Scanalyzers . | . . . Garrison Access . | . . . Total Hacks 4 | . 4 . Successful . | . . . Failed 4 | . 4 . Catastrophic . | . . . Database Lockouts . | . . . Manual . | . . . Terminals 4 | . 4 . Fabricators . | . . . Repair Stations . | . . . Recycling Units . | . . . Scanalyzers . | . . . Garrison Access . | . . . Terminal Hacks . | . . . Fabricator Hacks . | . . . Repair Station Hacks . | . . . Recycling Unit Hacks . | . . . Scanalyzer . | . . . Garrison Access Hacks . | . . . Unauthorized Hacks . | . . . Terminals . | . . . Fabricators . | . . . Repair Stations . | . . . Recycling Units . | . . . Scanalyzers . | . . . Garrison Access . | . . . Data Cores Recovered . | . . . Used . | . . . Hacking Detections 2 | . 2 . Full Trace Events . | . . . Feedback Events . | . . . Feedback Blocked . | . . . Robot Schematics Acquired . | . . . Robots Built . | . . . Authchips . | . . . Time . | . . . Total Robot Build Rating . | . . . Part Schematics Acquired . | . . . Parts Built . | . . . Authchips . | . . . Time . | . . . Total Part Build Rating . | . . . Parts Repaired . | . . . Time . | . . . Parts Recycled . | . . . Recycled Matter . | . . . Retrieved Matter . | . . . Retrieved Components . | . . . Parts Scanalyzed . | . . . Part Schematics Acquired . | . . . Parts Damaged . | . . . Bothacking | -11 -10 -9 ------------ Run | Yrd Mat Mat Used RIF Installer . | . . . Robots Hacked . | . . . Non-combat . | . . . Combat . | . . . Robot Hacks Applied . | . . . Relay Couplers Released . | . . . Fabnet Peak Effective % . | . . . Robots Rewired . | . . . Allies Hacked . | . . . Hacks Repelled . | . . . Allies | -11 -10 -9 -------- Run | Yrd Mat Mat Total Allies . | . . . Largest Group . | . . . Highest-Rated Group . | . . . Highest-Rated Ally . | . . . Total Orders . | . . . Ally Attacks . | . . . Total Damage . | . . . Kills . | . . . Allies Corrupted . | . . . Allies Melted . | . . . Intel | -11 -10 -9 ------- Run | Yrd Mat Mat Robot Analysis Total . | . . . Derelict Logs Recovered . | . . . Drone Launches . | . . . Drone Recoveries . | . . . Exploration | -11 -10 -9 ------------- Run | Yrd Mat Mat Turns Passed 597 | 80 433 84 Spaces Moved 266 | 47 192 27 Core 9 | 9 . . Treads 257 | 38 192 27 Legs . | . . . Wheels . | . . . Hover . | . . . Flight . | . . . Fastest Speed 50 | 50 160 160 Average Speed 156 | 138 160 160 Slowest Speed 160 | 160 160 160 Overloaded Moves . | . . . Propulsion Burnouts . | . . . Robots Hopped . | . . . Cave-ins Triggered . | . . . Exploration Rate (%) 16 | 4 41 5 Regions Visited 2 Branch Regions . Pre-discovered Areas . | . . . Known Exits Taken 1 | . 1 . Unknown Exits Taken 1 | 1 . . Scrap Searched . | . . . Spaces Dug . | . . . Terrain Destroyed . | . . . Melee . | . . . Projectile . | . . . AOE . | . . . Terrain Rammed . | . . . Walls Destroyed . | . . . Machines Disabled . | . . . Actions | -11 -10 -9 --------- Run | Yrd Mat Mat Total 362 | 62 256 44 Wait . | . . . Move 264 | 46 191 27 Hop . | . . . Pick Up 24 | 10 14 . Fast Attach . | . . . Attach 10 | 6 1 3 Detach . | . . . Swap 7 | . 7 . Drop 8 | . 8 . Fire 49 | . 35 14 Melee . | . . . Ram . | . . . Kick . | . . . Crush . | . . . Escape Stasis . | . . . Rewire . | . . . Trap . | . . . Miscellaneous . | . . . Route ------- -11/Scrapyard -10/Materials (discovered 3 exits: *Mat x2 / [*Min]) -9/Materials History --------- Turn | Location | Event 27 | -11/Scrapyard | Discovered new exit (range 13) 81 | -11/Scrapyard | Entered Materials 195 | -10/Materials | Discovered new exit (range 14) 300 | -10/Materials | Discovered new exit (range 8) 310 | -10/Materials | Build established: Mutant 389 | -10/Materials | Discovered new exit (range 16) 512 | -10/Materials | Identified exit to Materials 514 | -10/Materials | Entered another Materials area 514 | -9/Materials | Evolved 2 slots: Utility x1, Weapon x1 598 | -9/Materials | Self-destructed Last Messages --------------- PARAMETERS=UTILITY+1,WEAPON+1 LOCATION=MATERIALS GOAL=ESCAPE 00519_ O-16 Technician sends out distress signal. 00519_ O-16 Technician: "IFF HANDSHAKE FAILED. SECURING TERMINAL." 00533_ ALERT: Hostiles spotted, dispatching reinforcements to Terminal M008. 00542_ K-01 Serf collects debris. 00578_ G-34 Mercenary destroyed. 00578_ Critical hit (Burn: +37). 00580_ Lgt. Ion Engine destroyed. 00584_ R-06 Scavenger collects Sml. Laser. 00584_ G-47 Trooper destroyed. 00586_ R-06 Scavenger collects Particle Gun. 00590_ R-06 Scavenger collects Aluminum Leg. 00591_ Beam Cannon destroyed. 00593_ R-06 Scavenger collects Aluminum Leg. 00597_ Lgt. Treads destroyed. Map ----- +----------------------------------------------------+ | ??????????????????????????????????????????????? | | ??????????????????????????????????????????????? | | ??????????????????????????????????????????????? | | ??????????????????????????????????????????????? | | ??????????????????????????????????????????????? | | ??????????????????????????????????????????????? | | ??????????????????????????????????????????????? | | ??????????????????????????????????????????????? | | ??????????????????????????????????????????????? | | ??????????????????????????????????????????????? | | ??????????????????????????????????????????????? | | ??????????????????????????????????????????????? | | ??????????????????????????????????????????????? | | ??????????????????????????????????????????????? | | ???????????????????????????????x??????????????? | | ?????????????????????????########?????????????? | | ?????????????????????????# #?????????????? | | ?????????????????????????# #?????????????? | | ?????????????????????????# #?????????????? | | ?????????????????????????# #?????????????? | | ??????????????x??????????# #?????????????? | | ??????????????????????????? ??????????????? | | ???????????# ##############+####????????????? | | ???????????# l #????????????? | | ???????????+ g g rm%g #????????????? | | ???????????# o @ #????????????? | | ?????????????? ########### #####????????????? | | ?????????????????????????# #????????????????? | | ?????????????????????????#x #????????????????? | | ?????????????????????????# g #????????????????? | | ?????????????????????????#x #????????????????? | | ?????????????????????????# #????????????????? | | ?????????????????????????# #????????????????? | | ?????????????????????????# #????????????????? | | ?????????????????????????# #????????????????? | | ?????????????????????????# #????????????????? | | ?????????????????????????# #????????????????? | | ?????????????????????????# #????????????????? | | ?????????????????????????# ???????????????? | | ????????????????????????? ??????????????? | | ????????????????????????## ?????????????? | | ?????????????????????????# ???????????? | | ?????????????????????????# ??????????? | | ?????????????????????????# #### #?????????? | | ?????????????????????????# #??? #?????????? | | ?????????????????????????+ #???? #?????????? | | ?????????????????????????# #????? #?????????? | | ?????????????????????????#####????? #?????????? | | ??????????????????????????????????????????????? | | ??????????????????????????????????????????????? | +----------------------------------------------------+ Best States ------------- Heat Dissipation 28 Energy Generation 10 Energy Capacity 250 Matter Stores 300 Matter Capacity 300 Sight Range 16 Robot Scan Range 14 Terrain Scan Density 10 Evasion (%) 50 Recoil Reduction 2 Item Schematics ----------------- None Robot Schematics ------------------ None Fabricated ------------ Nothing Alien Tech Used ----------------- None Achievements -------------- None Challenges ------------ None Game ------ Seed FlightRelayTearclaws Manual? 0 Play Time 00:06:33 Cumulative 58.9 hours Start 2024.04.30 @ 15:07:29 End 2024.04.30 @ 15:14:48 Sessions 1 Manual Loads 0 Difficulty Rogue Special Mode None Game No. 99 Rogue 83 Adventurer 16 Explorer 0 Win Type - Total 0 Types 0/0/0/0/0/0/0/0/0 Lore% 22 Gallery% 37 Achievement% 27 Wizard Run 0 Options --------- Layout 1 ASCII 0 Keyboard 0 Movement Mouse Keybinds 0 Fullscreen 2 Font 24/Smallcaps Map View 50x35 Zoom Use 0% Tactical HUD 1 Map Filters NONE Filters NONE Steam 1 RUN: 4da0e0dc-cf91-4e30-8431-82bdf3a49167